fUSD/lending_fUSD_20250118
["ID","MTS","AMOUNT","RATE_DAILY","PERIOD"]
[349482893,1737208823731,-150.0,0.00023053,120]
[349482894,1737208823772,-150.0,0.00023245,120]
[349482895,1737208823817,-150.0,0.00023392,120]
[349482896,1737208823844,-150.0,0.00023608,120]
[349482897,1737208823869,-150.0,0.00023806,120]
[349482898,1737208823893,-150.0,0.00023938,120]
[349482904,1737208922560,191.97,0.00010137,2]
[349482906,1737208982218,-191.97,0.00016813,2]
[349482909,1737209136113,-316.61025842,0.00016905,2]
[349482910,1737209150311,723.3,0.00016844,2]
[349482911,1737209151046,487.59477491,0.00016281,7]
[349482912,1737209151384,1171.848618,0.00016281,7]
[349482913,1737209227103,-500.0,0.00017164,2]
[349482914,1737209227125,-600.0,0.00017164,2]
[349482915,1737209227148,-308.64787912,0.0001826,2]
[349482916,1737209227179,-291.35212088,0.0001826,2]
[349482917,1737209227201,-250.0,0.00018777,2]
[349482918,1737209227227,-250.0,0.0001879,2]
[349482919,1737209227251,-56.06959672,0.00018791,2]
[349482920,1737209233097,-128.37040328,0.00018791,2]
[349482921,1737209233119,-164.44,0.00018796,2]
[349482922,1737209233142,-250.0,0.00018797,2]
[349482923,1737209233163,-168.62,0.00018815,2]
[349482924,1737209233186,-947.80931208,0.00018835,2]
[349482925,1737209296891,265.0,0.00024,120]
[349482927,1737209338351,199.10510716,0.00016281,7]
[349482928,1737209338707,598.11507565,0.00016281,7]
[349482929,1737209346128,-209.68582769,0.00017164,2]
[349482930,1737209350092,-290.31417231,0.00017164,2]
[349482931,1737209350114,-458.11182769,0.00017164,2]
[349482932,1737209373951,10044.01320471,0.00024,120]
[349482938,1737209410815,4000.0,0.00024,120]
[349482939,1737209431689,-41.88817231,0.00017164,2]
[349482940,1737209431698,-500.0,0.00017164,2]
[349482941,1737209431707,-500.0,0.0001826,2]
[349482942,1737209431717,-52.19068792,0.00018835,2]
[349482943,1737209431726,-723.3,0.00019108,2]
[349482944,1737209431736,-300.0,0.000192,2]
[349482945,1737209431746,-500.0,0.00019356,2]
[349482946,1737209431755,-500.0,0.00019356,2]
[349482947,1737209431765,-194.500159,0.00019502,2]
[349482948,1737209431776,-18161.59006915,0.000196,2]
[349482949,1737209431788,-7094.38892,0.000196,2]
[349482950,1737209431801,-2720.71089613,0.000196,2]
[349482951,1737209431818,-886.31612495,0.000196,2]
[349482952,1737209431895,-104024.0622095,0.000196,2]
[349482953,1737209435941,-1535.08600526,0.000196,2]
[349482954,1737209436048,-7633.40190887,0.000196,2]
[349482955,1737209436060,-7312.74847705,0.000196,2]
[349482956,1737209436077,-5764.83045,0.000196,2]
[349482957,1737209436088,-3332.6871248,0.000196,2]
[349482958,1737209436099,-6897.6099792,0.000196,2]
[349482959,1737209436111,-1244.15535,0.000196,2]
[349482960,1737209436123,-1568.49349,0.000196,2]
[349483088,1737209437888,-181408.68950374,0.000196,2]
[349483115,1737209439585,-4225.50110064,0.000196,2]
[349483127,1737209439703,-1041.0505758,0.000196,2]
[349483129,1737209439716,-4687.44367,0.000196,2]
[349483135,1737209439820,-2947.81224162,0.000196,2]
[349483137,1737209439833,-1566.1574113,0.000196,2]
[349483139,1737209439846,-396.59,0.000196,2]
[349483151,1737209440034,-417.68999999,0.000196,2]
[349483165,1737209442530,-4825.7250728,0.000196,2]
[349483171,1737209442766,-3131.5116064,0.000196,2]
[349483172,1737209442838,-1775.60793695,0.000196,2]
[349483173,1737209442850,-981.96693255,0.000196,2]
[349483174,1737209442860,-1239.31132303,0.000196,2]
[349483185,1737209445647,-1890.65806292,0.000196,2]
[349483186,1737209445660,-5215.0,0.000196,2]
[349483187,1737209445671,-839.19743328,0.000196,2]
[349483188,1737209445683,-9928.2,0.000196,2]
[349483189,1737209445726,-832.161,0.000196,2]
[349483267,1737209510423,4978.19,0.000169,2]
[349483270,1737209747928,50000.0,0.00024,120]
[349483271,1737209776809,202.8,0.00012329,2]
[349483272,1737209795943,159.12,0.00010137,2]
[349483274,1737209811412,396.93,0.00024,120]
[349483275,1737210002373,223.06,0.00024,120]
[349483276,1737210086629,11287.95642428,0.00016281,7]
[349483277,1737210308418,871815.98249598,0.00012,2]
[349483278,1737210342145,-300.0,0.0001628,2]
[349483279,1737210342166,-1418.66968685,0.00016281,7]
[349483281,1737210355089,895.02974153,0.0001,2]
[349483282,1737210363739,392.82556488,0.0001,2]
[349483283,1737210435079,-300.0,0.0001628,2]
[349483284,1737210435100,-524.26120511,0.00016281,7]
[349483285,1737210436100,-1632.60068508,0.00016281,7]
[349483286,1737210438147,-736.41136414,0.00016281,7]
[349483287,1737210449096,-1660.08586805,0.00016281,7]
[349483288,1737210482437,5904473.02770957,0.0001,2]
[349483350,1737210546095,-27058.77134649,0.00016281,7]
[349483351,1737210546118,-650.97,0.00016677,2]
[349483352,1737210546139,-500.0,0.00017164,2]
[349483353,1737210546159,-500.0,0.00017164,2]
[349483354,1737210546182,-500.0,0.00017164,2]
[349483355,1737210546205,-117.09672317,0.00017164,2]
[349483356,1737210556083,-490.0,0.00017164,2]
[349483376,1737210631710,-500.0,0.0001826,2]
[349483377,1737210631720,-988.51865321,0.0001831,2]
[349483378,1737210631730,-170.44,0.00018383,2]
[349483379,1737210631740,-1000.0,0.00018456,2]
[349483380,1737210631748,-184.44,0.00018483,2]
[349483381,1737210631758,-180.8,0.00018534,2]
[349483382,1737210631767,-250.0,0.00018614,2]
[349483383,1737210631777,-190.53,0.00018626,2]
[349483384,1737210631786,-20.24632471,0.000187,5]
[349483385,1737210631798,-469.75367529,0.000187,5]
[349483386,1737210631808,-250.0,0.00018717,2]
[349483387,1737210631817,-893.3,0.0001873,2]
[349483388,1737210631827,-250.0,0.00018736,2]
[349483389,1737210631837,-164.96,0.00018806,2]
[349483390,1737210631847,-940.66,0.00018882,2]
[349483391,1737210631856,-650.97,0.00018941,2]
[349483392,1737210631866,-7713.37776639,0.00019,2]
[349483393,1737210631877,-653.37628901,0.00019,2]
[349483394,1737210631893,-1602.09178916,0.00019,2]
[349483395,1737210631907,-371.35,0.00019,2]
[349483396,1737210631962,-957.55557787,0.00019,2]
[349483397,1737210631980,-950.78652454,0.00019,2]
[349483398,1737210631990,-4257.71347546,0.00019033,2]
[349483399,1737210632001,-10528.65911914,0.00019033,2]
[349483400,1737210632017,-435.51999,0.00019033,2]
[349483411,1737210637679,-500.0,0.00017164,2]
[349483412,1737210637689,-938.54061176,0.00019033,2]
[349483413,1737210637701,-3931.016471,0.00019033,2]
[349483414,1737210637766,-2684.80033264,0.00019033,2]
[349483415,1737210637777,-437.291,0.00019121,2]
[349483416,1737210637787,-163.046,0.00019121,2]
[349483417,1737210637797,-879.31,0.000192,2]
[349483418,1737210637808,-500.0,0.00019356,2]
[349483419,1737210637817,-500.0,0.00019356,2]
[349483420,1737210637827,-140.91411474,0.000194,2]
[349483421,1737210637853,-9.08588526,0.000194,2]
[349483422,1737210637863,-242.20808234,0.000194,2]
[349483423,1737210637874,-2757.79191766,0.000194,2]
[349483424,1737210637883,-165.1277,0.0001943,2]
[349483425,1737210637892,-3000.0,0.0001945,2]
[349483426,1737210637904,-265.7956,0.00019503,2]
[349483427,1737210637913,-323.9574,0.00019503,2]
[349483428,1737210637924,-443.877,0.00019503,2]
[349483429,1737210638116,-3869.2118,0.00019503,2]
[349483430,1737210638126,-1331.731,0.00019503,2]
[349483431,1737210638136,-3000.0,0.0001952,2]
[349483432,1737210638145,-279.204263,0.00019532,2]
[349483433,1737210638155,-607.82473675,0.0001959,2]
[349483434,1737210638164,-1466.1659,0.0001959,2]
[349483435,1737210638173,-30547.01181818,0.000196,2]
[349483436,1737210638186,-1094.72657998,0.000196,2]
[349483437,1737210638198,-3992.5,0.000196,2]
[349483438,1737210638209,-3395.61564401,0.000196,2]
[349483439,1737210638226,-993.33803969,0.000196,2]
[349483458,1737210639834,-1657.95930001,0.000196,2]
[349483459,1737210639934,-15620.25623999,0.000196,2]
[349483460,1737210640027,-7853.15901991,0.000196,2]
[349483461,1737210640039,-1742.655124,0.000196,2]
[349483462,1737210640051,-2317.80911958,0.000196,2]
[349483463,1737210640063,-656.2,0.000196,2]
[349483464,1737210640075,-1944.67911,0.000196,2]
[349483465,1737210640087,-1308.581522,0.000196,2]
[349483466,1737210640099,-37981.10248257,0.000196,2]
[349483467,1737210640110,-4223.70000817,0.000196,2]
[349483468,1737210640124,-5158.76429976,0.000196,2]
[349483469,1737210640136,-5246.17239943,0.000196,2]
[349483481,1737210642729,-12077.00000025,0.000196,2]
[349483482,1737210642741,-31278.0,0.000196,2]
[349483484,1737210642752,-7708.8,0.000196,2]
[349483485,1737210642814,-1022.94046897,0.000196,2]
[349483486,1737210642899,-8018.4944346,0.000196,2]
[349483487,1737210642913,-8399.91251989,0.000196,2]
[349483488,1737210642985,-1564.8,0.000196,2]
[349483489,1737210642999,-417441.6490118,0.000196,2]
[349483490,1737210643015,-1042.2820114,0.000196,2]
[349483692,1737210645739,-646.02983,0.000196,2]
[349483693,1737210645759,-5216.0,0.000196,2]
[349483694,1737210645995,-18098.97525819,0.000196,2]
[349483695,1737210646007,-206340.72239572,0.000196,2]
[349483696,1737210646018,-86908.95954517,0.000196,2]
[349483705,1737210782751,154.14,0.00010137,2]
[349483711,1737211599844,150.0,0.00012,2]
[349483712,1737211626105,-177.26,0.00014502,2]
[349483713,1737211626129,-550.0,0.00015,2]
[349483714,1737211626150,-217.49292923,0.00015481,2]
[349483715,1737211626171,-217.49292923,0.00015581,2]
[349483716,1737211626192,-112.82648941,0.00015581,2]
[349483717,1737211636142,-806.27441633,0.00015581,2]
[349483718,1737211639096,-1069.5619112,0.00015581,2]
[349483719,1737211639117,-308.82305,0.00015801,2]
[349483720,1737211639141,-280.15831877,0.000159,2]
[349483721,1737211752119,-300.0,0.00016092,2]
[349483722,1737211752141,-271.90505396,0.00016173,2]
[349483723,1737211752162,-271.90505394,0.00016177,2]
[349483724,1737211752183,-271.90505394,0.00016181,2]
[349483725,1737211752204,-251.0,0.0001628,2]
[349483726,1737211752226,-300.0,0.0001628,2]
[349483727,1737211752247,-28544.03099816,0.00016281,7]
[349483728,1737211771182,-1633.6009212,0.00016077,2]
[349483729,1737211771202,-22906.84988184,0.00016281,7]
[349483730,1737211771224,-7956.01608657,0.00016281,7]
[349483744,1737211831960,-300.0,0.0001628,2]
[349483745,1737211831971,-65715.28084483,0.00016281,7]
[349483746,1737211831984,-2273.77584785,0.00016281,7]
[349483747,1737211831994,-979.99999999,0.00016281,7]
[349483748,1737211832003,-1121.21,0.00016332,2]
[349483749,1737211832013,-1242.0,0.000166,2]
[349483750,1737211832023,-600.0,0.00017,2]
[349483751,1737211832032,-587.54,0.00017046,2]
[349483752,1737211832042,-250.0,0.00017081,2]
[349483753,1737211832051,-1500.0,0.00017088,2]
[349483754,1737211832060,-1000.0,0.00017098,2]
[349483755,1737211832070,-1629.72,0.0001716,2]
[349483756,1737211832079,-500.0,0.00017164,2]
[349483757,1737211832088,-500.0,0.00017164,2]
[349483758,1737211832098,-600.0,0.00017164,2]
[349483759,1737211832107,-630.23,0.00017193,2]
[349483760,1737211832117,-1585.96,0.00017203,2]
[349483761,1737211832126,-258.46,0.00017218,2]
[349483762,1737211832136,-302.79,0.00017248,3]
[349483763,1737211832146,-1208.33,0.00017312,2]
[349483764,1737211832156,-150.0,0.00017312,2]
[349483765,1737211832165,-47.00417733,0.00017323,2]
[349483766,1737211832178,-1838.83582267,0.00017323,2]
[349483767,1737211832187,-250.0,0.00017351,2]
[349483768,1737211832197,-973.14,0.00017437,2]
[349483769,1737211832207,-1455.24173152,0.00017449,2]
[349483770,1737211832219,-6812.68198432,0.00017449,2]
[349483771,1737211832231,-3026.48911653,0.00017449,2]
[349483772,1737211832243,-714.63265258,0.00017449,2]
[349483773,1737211832260,-7398.42236466,0.00017449,2]
[349483774,1737211832275,-342.527592,0.00017449,2]
[349483775,1737211832288,-720.52065708,0.00017449,2]
[349483776,1737211832300,-1557.5899594,0.00017449,2]
[349483777,1737211832323,-1305.49139509,0.00017449,2]
[349483778,1737211832335,-566.40254682,0.00017449,2]
[349483779,1737211832346,-693.59745313,0.00017589,2]
[349483780,1737211832358,-23.48254687,0.00017589,2]
[349483781,1737211832368,-1643.27426927,0.00017623,2]
[349483782,1737211832384,-2815.95573073,0.00017623,2]
[349483783,1737211832394,-641.88337922,0.00017694,2]
[349483784,1737211832404,-420.0,0.00017794,2]
[349483785,1737211832413,-685.07,0.00017869,2]
[349483786,1737211832423,-184.94,0.00017898,2]
[349483787,1737211832432,-201.32011449,0.000179,2]
[349483788,1737211832442,-641.88337919,0.00017928,2]
[349483789,1737211832451,-1385.94745068,0.00018,2]
[349483790,1737211832461,-187.86,0.00018068,2]
[349483791,1737211832470,-176.03,0.00018082,2]
[349483792,1737211832480,-1807.81,0.00018094,2]
[349483793,1737211832489,-641.88337919,0.00018162,2]
[349483794,1737211832499,-317.1,0.00018166,2]
[349483795,1737211832509,-317.18,0.00018249,2]
[349483796,1737211832518,-600.0,0.0001826,2]
[349483797,1737211832528,-831.03,0.00018268,2]
[349483798,1737211832537,-201.32011447,0.000183,2]
[349483799,1737211832547,-641.88337919,0.00018396,2]
[349483800,1737211832556,-150.49,0.0001841,2]
[349483801,1737211832565,-250.0,0.00018469,2]
[349483802,1737211832574,-3433.68,0.00018469,2]
[349483803,1737211832584,-1121.21,0.00018595,2]
[349483804,1737211832593,-1208.6144,0.00018616,2]
[349483805,1737211832603,-309.65,0.00018619,2]
[349483806,1737211832612,-180.91815154,0.0001863,2]
[349483807,1737211832624,-460.96522765,0.0001863,2]
[349483808,1737211832633,-201.32011447,0.000187,2]
[349483809,1737211832643,-173.95,0.00018709,2]
[349483810,1737211832652,-200.0,0.00018716,2]
[349483811,1737211832662,-862.82924828,0.00018749,7]
[349483812,1737211832672,-685.07,0.00018763,2]
[349483813,1737211832681,-200.0,0.00018765,7]
[349483814,1737211832690,-200.0,0.00018766,7]
[349483815,1737211832700,-862.82924828,0.00018773,7]
[349483816,1737211832709,-200.0,0.00018791,7]
[349483817,1737211832719,-862.82924828,0.00018793,7]
[349483818,1737211832729,-3173.91019567,0.00018795,7]
[349483819,1737211832739,-862.82924828,0.00018806,7]
[349483820,1737211832748,-200.0,0.00018806,7]
[349483821,1737211832759,-200.0,0.0001881,7]
[349483822,1737211832768,-200.0,0.00018814,7]
[349483823,1737211832778,-862.82924828,0.00018816,7]
[349483824,1737211832787,-200.0,0.00018819,7]
[349483825,1737211832797,-670.31165452,0.00018824,7]
[349483826,1737211832809,-930.13464155,0.00018824,7]
[349483827,1737211832820,-746.93467711,0.00018824,7]
[349483828,1737211832832,-826.52922249,0.00018824,7]
[349483829,1737211832841,-3173.91019567,0.00018825,7]
[349483830,1737211832852,-200.0,0.0001883,7]
[349483831,1737211832861,-200.0,0.00018847,7]
[349483832,1737211832871,-3173.91019567,0.00018854,7]
[349483833,1737211832880,-641.88337919,0.00018864,2]
[349483834,1737211832889,-862.82924828,0.0001887,7]
[349483835,1737211832899,-3173.91019567,0.00018877,7]
[349483836,1737211832908,-862.82924828,0.00018879,7]
[349483837,1737211832917,-3173.91019567,0.00018884,7]
[349483838,1737211832927,-3173.91019567,0.00018884,7]
[349483839,1737211832937,-862.82924828,0.00018885,7]
[349483840,1737211832947,-3173.91019567,0.0001889,7]
[349483841,1737211832956,-876.74,0.00018904,2]
[349483842,1737211832965,-167.93001096,0.00019,2]
[349483843,1737211832975,-650.0,0.00019,2]
[349483844,1737211832984,-403.858,0.00019084,2]
[349483845,1737211832993,-641.88337919,0.00019098,2]
[349483846,1737211833003,-201.32011447,0.000191,2]
[349483847,1737211833013,-1000.0,0.000192,2]
[349483848,1737211833022,-2500.0,0.000192,2]
[349483849,1737211833032,-400.0,0.000192,7]
[349483850,1737211833042,-281.83,0.00019202,2]
[349483851,1737211833051,-500.0,0.00019202,2]
[349483852,1737211833061,-500.0,0.00019202,2]
[349483853,1737211833070,-500.0,0.00019202,2]
[349483854,1737211833080,-197.28228471,0.00019202,2]
[349483855,1737211833089,-65209.0,0.00019202,2]
[349483856,1737211833099,-1000.0,0.00019235,2]
[349483857,1737211833109,-1000.0,0.000193,2]
[349483858,1737211833119,-500.0,0.000193,2]
[349483859,1737211833129,-16511.93850001,0.000193,2]
[349483860,1737211833140,-404.92261432,0.000193,2]
[349483861,1737211833152,-19204.74728567,0.000193,2]
[349483862,1737211833162,-900.0,0.000193,7]
[349483863,1737211833171,-641.88337919,0.00019332,2]
[349483864,1737211833181,-630.23,0.00019343,2]
[349483865,1737211833191,-501.0742298,0.00019356,2]
[349483866,1737211836391,-500.0,0.00019202,2]
[349483867,1737211836401,-98.9257702,0.00019356,2]
[349483868,1737211836420,-500.0,0.00019356,2]
[349483869,1737211836430,-500.0,0.00019356,2]
[349483870,1737211836440,-500.0,0.00019373,2]
[349483871,1737211836450,-154.32734337,0.00019373,2]
[349483872,1737211836460,-166.25733354,0.00019373,2]
[349483873,1737211836470,-170.88491333,0.00019391,2]
[349483874,1737211836480,-500.0,0.00019398,2]
[349483875,1737211836491,-500.0,0.00019398,2]
[349483876,1737211836501,-500.0,0.00019398,2]
[349483877,1737211836511,-500.0,0.00019398,2]
[349483878,1737211836531,-177.00463956,0.00019398,2]
[349483881,1737211837860,-1789.98068759,0.00019102,2]
[349483882,1737211837873,-710.01931241,0.00019102,2]
[349483883,1737211837883,-322.99536044,0.00019398,2]
[349483884,1737211837893,-500.0,0.00019398,2]
[349483885,1737211837903,-500.0,0.00019398,2]
[349483886,1737211837913,-500.0,0.00019398,2]
[349483887,1737211837923,-75.12864771,0.00019398,2]
[349483888,1737211837935,-424.87135229,0.00019398,2]
[349483889,1737211837945,-500.0,0.00019398,2]
[349483890,1737211837955,-500.0,0.00019398,2]
[349483891,1737211837965,-500.0,0.00019398,2]
[349483892,1737211837974,-500.0,0.00019398,2]
[349483893,1737211837983,-500.0,0.00019398,2]
[349483894,1737211837993,-428.97752137,0.00019398,2]
[349483895,1737211838003,-208.31,0.00019398,2]
[349483896,1737211838015,-500.0,0.00019398,2]
[349483897,1737211838024,-306.52432478,0.00019398,2]
[349483898,1737211838034,-500.0,0.00019398,2]
[349483899,1737211838043,-500.0,0.00019398,2]
[349483900,1737211838053,-500.0,0.00019398,2]
[349483901,1737211838062,-500.0,0.00019398,2]
[349483902,1737211838072,-500.0,0.00019398,2]
[349483903,1737211838081,-500.0,0.00019398,2]
[349483904,1737211838092,-500.0,0.00019398,2]
[349483905,1737211838101,-500.0,0.00019398,2]
[349483906,1737211838112,-500.0,0.00019398,2]
[349483907,1737211838122,-1588.82,0.00019398,2]
[349483908,1737211838131,-500.0,0.00019398,2]
[349483909,1737211838141,-500.0,0.00019398,2]
[349483910,1737211838151,-500.0,0.00019398,2]
[349483911,1737211838161,-500.0,0.00019398,2]
[349483912,1737211838170,-500.0,0.00019398,2]
[349483913,1737211838180,-500.0,0.00019399,2]
[349483914,1737211838189,-500.0,0.00019399,2]
[349483915,1737211838199,-500.0,0.00019399,2]
[349483916,1737211838208,-500.0,0.00019399,2]
[349483917,1737211838218,-500.0,0.00019399,2]
[349483918,1737211838227,-500.0,0.00019399,2]
[349483919,1737211838237,-500.0,0.00019399,2]
[349483920,1737211838246,-263.86584545,0.00019399,2]
[349483921,1737211838257,-500.0,0.00019399,2]
[349483922,1737211838267,-500.0,0.00019399,2]
[349483923,1737211838281,-500.0,0.00019399,2]
[349483925,1737211838290,-500.0,0.00019399,2]
[349483927,1737211838301,-500.0,0.00019399,2]
[349483929,1737211838311,-500.0,0.00019399,2]
[349483930,1737211838320,-500.0,0.00019399,2]
[349483932,1737211838329,-500.0,0.00019399,2]
[349483934,1737211838338,-500.0,0.00019399,2]
[349483935,1737211838348,-255.76902922,0.00019399,2]
[349483938,1737211838365,-244.23097078,0.00019399,2]
[349483940,1737211838375,-329.21902922,0.00019399,2]
[349483943,1737211838386,-170.78097078,0.00019399,2]
[349483945,1737211838396,-500.0,0.00019399,2]
[349483947,1737211838405,-500.0,0.00019399,2]
[349483949,1737211838415,-500.0,0.00019399,2]
[349483952,1737211838425,-500.0,0.00019399,2]
[349483953,1737211838435,-500.0,0.00019399,2]
[349483955,1737211838444,-500.0,0.00019399,2]
[349483957,1737211838454,-219.54821931,0.00019399,2]
[349483959,1737211838463,-500.0,0.00019399,2]
[349483961,1737211838472,-575.26973875,0.00019399,2]
[349483962,1737211838482,-500.0,0.00019399,2]
[349483964,1737211838491,-500.0,0.00019399,2]
[349483966,1737211838501,-500.0,0.00019399,2]
[349483968,1737211838510,-500.0,0.00019399,2]
[349483970,1737211838520,-500.0,0.00019399,2]
[349483971,1737211838529,-500.0,0.00019399,2]
[349483973,1737211838539,-500.0,0.00019399,2]
[349483975,1737211838549,-500.0,0.00019399,2]
[349483977,1737211838558,-500.0,0.00019399,2]
[349483979,1737211838567,-500.0,0.00019399,2]
[349483980,1737211838577,-500.0,0.00019399,2]
[349483982,1737211838586,-500.0,0.00019399,2]
[349483984,1737211838595,-500.0,0.00019399,2]
[349483986,1737211838605,-500.0,0.00019399,2]
[349483987,1737211838614,-500.0,0.00019399,2]
[349483989,1737211838624,-500.0,0.00019399,2]
[349483991,1737211838634,-500.0,0.00019399,2]
[349483993,1737211838643,-500.0,0.00019399,2]
[349483995,1737211838653,-500.0,0.00019399,2]
[349483997,1737211838663,-500.0,0.00019399,2]
[349483998,1737211838672,-502.56004954,0.00019399,2]
[349484000,1737211838682,-492.94449744,0.00019399,2]
[349484002,1737211838692,-500.0,0.00019399,2]
[349484004,1737211838702,-500.0,0.00019399,2]
[349484006,1737211838717,-500.0,0.00019399,2]
[349484007,1737211838733,-500.0,0.00019399,2]
[349484009,1737211838742,-500.0,0.00019399,2]
[349484011,1737211838751,-503.1147053,0.00019399,2]
[349484013,1737211838762,-595.28025725,0.00019399,2]
[349484015,1737211838771,-500.0,0.00019399,2]
[349484017,1737211838780,-500.0,0.00019399,2]
[349484019,1737211838789,-500.0,0.00019399,2]
[349484020,1737211838799,-256.71354933,0.00019399,2]
[349484023,1737211838812,-243.28645067,0.00019399,2]
[349484024,1737211838822,-500.0,0.00019399,2]
[349484026,1737211838831,-500.0,0.00019399,2]
[349484028,1737211838840,-502.62151605,0.00019399,2]
[349484029,1737211838849,-500.0,0.00019399,2]
[349484031,1737211838858,-500.0,0.00019399,2]
[349484033,1737211838868,-500.0,0.00019399,2]
[349484035,1737211838877,-500.0,0.00019399,2]
[349484037,1737211838887,-500.0,0.00019399,2]
[349484038,1737211838896,-500.0,0.00019399,2]
[349484040,1737211838907,-344.08,0.00019399,2]
[349484042,1737211838916,-500.0,0.00019399,2]
[349484044,1737211838925,-500.0,0.00019399,2]
[349484046,1737211838935,-500.0,0.00019399,2]
[349484047,1737211838944,-500.0,0.00019399,2]
[349484049,1737211838953,-500.0,0.00019399,2]
[349484051,1737211838963,-464.98317828,0.00019399,2]
[349484053,1737211838973,-500.0,0.00019399,2]
[349484055,1737211838982,-248.68995954,0.00019399,2]
[349484057,1737211838992,-500.0,0.00019399,2]
[349484071,1737211839201,-500.0,0.00019399,2]
[349484072,1737211839214,-500.0,0.00019399,2]
[349484073,1737211839224,-502.52,0.00019399,2]
[349484074,1737211839234,-500.0,0.00019399,2]
[349484075,1737211839243,-500.0,0.00019399,2]
[349484076,1737211839253,-500.0,0.00019399,2]
[349484077,1737211839264,-249.55920399,0.00019399,2]
[349484078,1737211839280,-251.46873897,0.00019399,2]
[349484079,1737211839290,-220.69299716,0.00019399,2]
[349484080,1737211839299,-268.53936906,0.00019399,2]
[349484081,1737211839315,-231.46063094,0.00019399,2]
[349484082,1737211839324,-268.53936906,0.00019399,2]
[349484096,1737211840079,-231.46063094,0.00019399,2]
[349484097,1737211840089,-500.0,0.00019399,2]
[349484098,1737211840099,-500.0,0.00019399,2]
[349484099,1737211840108,-246.17,0.00019399,2]
[349484100,1737211840118,-187.90609366,0.00019399,2]
[349484101,1737211840130,-312.09390634,0.00019399,2]
[349484102,1737211840139,-336.2893352,0.00019399,2]
[349484103,1737211840151,-163.7106648,0.00019399,2]
[349484104,1737211840160,-500.0,0.00019399,2]
[349484105,1737211840170,-500.0,0.00019399,2]
[349484106,1737211840179,-500.0,0.00019399,2]
[349484107,1737211840189,-123.57655766,0.00019399,2]
[349484108,1737211840201,-376.42344234,0.00019399,2]
[349484109,1737211840211,-500.0,0.00019399,2]
[349484110,1737211840221,-500.0,0.00019399,2]
[349484111,1737211840231,-500.0,0.00019399,2]
[349484112,1737211840241,-512.0981695,0.00019399,2]
[349484113,1737211840251,-500.0,0.00019399,2]
[349484114,1737211840261,-500.0,0.00019399,2]
[349484115,1737211840275,-500.0,0.00019399,2]
[349484116,1737211840285,-130.56966778,0.00019399,2]
[349484117,1737211840297,-315.6,0.00019399,2]
[349484118,1737211840308,-53.83033222,0.00019399,2]
[349484119,1737211840318,-501.39196759,0.00019399,2]
[349484120,1737211840327,-500.0,0.00019399,2]
[349484121,1737211840337,-500.0,0.00019399,2]
[349484122,1737211840348,-500.0,0.00019399,2]
[349484123,1737211840357,-500.0,0.00019399,2]
[349484124,1737211840366,-434.8,0.00019399,2]
[349484125,1737211840376,-500.0,0.00019399,2]
[349484126,1737211840386,-500.0,0.00019399,2]
[349484127,1737211840396,-500.0,0.00019399,2]
[349484128,1737211840406,-500.0,0.00019399,2]
[349484129,1737211840415,-500.0,0.00019399,2]
[349484130,1737211840425,-500.0,0.00019399,2]
[349484131,1737211840434,-503.59853383,0.00019399,2]
[349484132,1737211840444,-500.0,0.00019399,2]
[349484133,1737211840454,-500.0,0.00019399,2]
[349484134,1737211840463,-111.83939136,0.000194,2]
[349484135,1737211840480,-1353.84,0.000194,2]